[Event "Early-Titled-Tuesday-Blitz-January-23-2024"]
[Site "Chess.com"]
[Date "2024.01.23"]
[Round "2"]
[White "Tsyhanchuk_Stanislav"]
[Black "FARIZA2018"]
[Result "0-1"]
[WhiteElo "2295"]
[BlackElo "2524"]
[TimeControl "180+1"]
[EndTime "8:16:16 PST"]
[Termination "FARIZA2018 won on time"]

1. e4 {[%clk 0:02:00.9]} 1... e5 {[%clk 0:02:59.7]} 2. Nf3 {[%clk 0:02:00.7]}
2... Nc6 {[%clk 0:02:59.3]} 3. Bb5 {[%clk 0:02:01.1]} 3... a6 {[%clk 0:02:59.3]}
4. Ba4 {[%clk 0:02:01.3]} 4... Nf6 {[%clk 0:02:59.1]} 5. O-O {[%clk 0:02:01]}
5... Be7 {[%clk 0:02:59.4]} 6. Re1 {[%clk 0:01:59.3]} 6... b5 {[%clk 0:02:59.4]}
7. Bb3 {[%clk 0:01:59.6]} 7... d6 {[%clk 0:02:59.6]} 8. c3 {[%clk 0:01:57.3]}
8... O-O {[%clk 0:02:59.2]} 9. h3 {[%clk 0:01:55.8]} 9... Bb7 {[%clk 0:02:59.2]}
10. d4 {[%clk 0:01:55.8]} 10... Re8 {[%clk 0:02:58.5]} 11. Nbd2 {[%clk
0:01:50.6]} 11... Bf8 {[%clk 0:02:54.6]} 12. Bc2 {[%clk 0:01:47.4]} 12... g6
{[%clk 0:02:51.3]} 13. Nf1 {[%clk 0:01:44]} 13... h6 {[%clk 0:02:45.3]} 14. Ng3
{[%clk 0:01:41.7]} 14... Bg7 {[%clk 0:02:44.1]} 15. a4 {[%clk 0:01:34.5]} 15...
exd4 {[%clk 0:02:42.8]} 16. cxd4 {[%clk 0:01:33.4]} 16... Nb4 {[%clk 0:02:42.4]}
17. Bb1 {[%clk 0:01:30.1]} 17... c5 {[%clk 0:02:38.7]} 18. d5 {[%clk 0:01:22.4]}
18... Nd7 {[%clk 0:02:33.1]} 19. axb5 {[%clk 0:00:56.7]} 19... axb5 {[%clk
0:02:31.2]} 20. Rxa8 {[%clk 0:00:57.3]} 20... Qxa8 {[%clk 0:02:30.3]} 21. Bd3
{[%clk 0:00:51.8]} 21... Nxd3 {[%clk 0:02:27.4]} 22. Qxd3 {[%clk 0:00:52.7]}
22... c4 {[%clk 0:02:26.4]} 23. Qc2 {[%clk 0:00:40.1]} 23... Nc5 {[%clk
0:02:25.8]} 24. Be3 {[%clk 0:00:24.8]} 24... Nd3 {[%clk 0:02:25.4]} 25. Rb1
{[%clk 0:00:24.4]} 25... Qa2 {[%clk 0:02:09.9]} 26. Bd4 {[%clk 0:00:23.3]} 26...
b4 {[%clk 0:01:51.3]} 27. Bxg7 {[%clk 0:00:20.6]} 27... Kxg7 {[%clk 0:01:51.2]}
28. Nd2 {[%clk 0:00:13.3]} 28... Ba6 {[%clk 0:01:46.3]} 29. Ne2 {[%clk
0:00:05.7]} 29... c3 {[%clk 0:01:44.2]} 30. Nb3 {[%clk 0:00:02.8]} 30... Nxb2
{[%clk 0:01:42.1]} 31. Ned4 {[%clk 0:00:02.4]} 31... Bd3 {[%clk 0:01:41.7]} 32.
Rxb2 {[%clk 0:00:01.5]} 32... cxb2 {[%clk 0:01:39]} 33. Qxd3 {[%clk 0:00:01.1]}
33... b1=Q+ {[%clk 0:01:39]} 0-1

[Event "Early-Titled-Tuesday-Blitz-January-23-2024"]
[Site "Chess.com"]
[Date "2024.01.23"]
[Round "2"]
[White "tusplingher"]
[Black "GothamChess"]
[Result "0-1"]
[WhiteElo "2505"]
[BlackElo "2757"]
[TimeControl "180+1"]
[EndTime "8:16:18 PST"]
[Termination "GothamChess won by resignation"]

1. e4 {[%clk 0:02:25.6]} 1... d5 {[%clk 0:02:59]} 2. exd5 {[%clk 0:02:24.6]}
2... Qxd5 {[%clk 0:02:59.9]} 3. Nc3 {[%clk 0:02:24.5]} 3... Qa5 {[%clk
0:02:59.9]} 4. Nf3 {[%clk 0:02:21.8]} 4... Nf6 {[%clk 0:03:00.1]} 5. d4 {[%clk
0:02:15.9]} 5... Bf5 {[%clk 0:02:59.5]} 6. Bc4 {[%clk 0:02:11.3]} 6... e6 {[%clk
0:02:59.1]} 7. O-O {[%clk 0:02:09.6]} 7... Bb4 {[%clk 0:02:58.9]} 8. Bd2 {[%clk
0:02:05.7]} 8... Nc6 {[%clk 0:02:59.3]} 9. a3 {[%clk 0:01:56.1]} 9... Bxc3
{[%clk 0:02:52]} 10. Bxc3 {[%clk 0:01:57]} 10... Qb6 {[%clk 0:02:52.2]} 11. a4
{[%clk 0:01:42.2]} 11... a5 {[%clk 0:02:43.5]} 12. Ne5 {[%clk 0:01:32]} 12...
O-O {[%clk 0:02:37.3]} 13. Bb5 {[%clk 0:00:58.8]} 13... Nxe5 {[%clk 0:02:21.6]}
14. dxe5 {[%clk 0:00:59.7]} 14... Nd5 {[%clk 0:02:18.8]} 15. Ra3 {[%clk
0:00:39.8]} 15... Nxc3 {[%clk 0:02:08.7]} 16. Rxc3 {[%clk 0:00:39.2]} 16... c6
{[%clk 0:02:08.8]} 17. Bd3 {[%clk 0:00:36.3]} 17... Qxb2 {[%clk 0:02:04.8]} 18.
Rb3 {[%clk 0:00:32.7]} 18... Qxe5 {[%clk 0:02:04.1]} 19. Bxf5 {[%clk 0:00:26.6]}
19... Qxf5 {[%clk 0:02:04.7]} 20. Rxb7 {[%clk 0:00:26.6]} 20... Rad8 {[%clk
0:01:59.4]} 21. Qe2 {[%clk 0:00:23.3]} 21... Rd5 {[%clk 0:01:56.2]} 22. Rc7
{[%clk 0:00:20.6]} 22... Rc5 {[%clk 0:01:56.3]} 23. Qa6 {[%clk 0:00:18.2]} 23...
Qxc2 {[%clk 0:01:48.9]} 24. Rc8 {[%clk 0:00:13.8]} 24... g6 {[%clk 0:01:45.8]}
25. Rxf8+ {[%clk 0:00:13.7]} 25... Kxf8 {[%clk 0:01:46.2]} 26. Qc8+ {[%clk
0:00:12]} 26... Kg7 {[%clk 0:01:45.9]} 27. Qd8 {[%clk 0:00:12.8]} 27... Qc3
{[%clk 0:01:43.9]} 28. Qd6 {[%clk 0:00:12]} 28... Qe5 {[%clk 0:01:43.4]} 29. Qd2
{[%clk 0:00:11.4]} 29... Rc4 {[%clk 0:01:41.7]} 30. Qd1 {[%clk 0:00:10.3]} 30...
Qd4 {[%clk 0:01:41]} 31. Qb3 {[%clk 0:00:10.1]} 31... Rxa4 {[%clk 0:01:40.1]}
32. Qb1 {[%clk 0:00:08]} 32... Rb4 {[%clk 0:01:39.6]} 33. Qa2 {[%clk 0:00:08.4]}
33... a4 {[%clk 0:01:39.7]} 34. h3 {[%clk 0:00:08.1]} 34... Qb2 {[%clk
0:01:37.7]} 35. Ra1 {[%clk 0:00:06.6]} 35... Qxa2 {[%clk 0:01:37.4]} 36. Rxa2
{[%clk 0:00:07.5]} 36... Kf6 {[%clk 0:01:36.6]} 37. Kf1 {[%clk 0:00:08.2]} 37...
Ke5 {[%clk 0:01:36.8]} 38. Ke2 {[%clk 0:00:09]} 38... Kd4 {[%clk 0:01:37.5]} 39.
Kd2 {[%clk 0:00:09.7]} 39... c5 {[%clk 0:01:35.8]} 40. f3 {[%clk 0:00:09.6]}
40... c4 {[%clk 0:01:35.2]} 41. Kc2 {[%clk 0:00:10.1]} 41... c3 {[%clk
0:01:32.5]} 0-1

[Event "Early-Titled-Tuesday-Blitz-January-23-2024"]
[Site "Chess.com"]
[Date "2024.01.23"]
[Round "2"]
[White "Shodikulov_Jamshid1990"]
[Black "Arlo2024"]
[Result "0-1"]
[WhiteElo "2493"]
[BlackElo "2284"]
[TimeControl "180+1"]
[EndTime "8:16:18 PST"]
[Termination "Arlo2024 won by resignation"]

1. e4 {[%clk 0:03:00.9]} 1... e6 {[%clk 0:02:59.7]} 2. d4 {[%clk 0:03:00.4]}
2... d5 {[%clk 0:03:00.2]} 3. Nd2 {[%clk 0:03:01]} 3... dxe4 {[%clk 0:03:01.1]}
4. Nxe4 {[%clk 0:03:00.8]} 4... Nd7 {[%clk 0:03:01.9]} 5. Nf3 {[%clk 0:03:01]}
5... Ngf6 {[%clk 0:03:02.8]} 6. Bd3 {[%clk 0:03:01.5]} 6... Nxe4 {[%clk
0:03:03]} 7. Bxe4 {[%clk 0:03:00.8]} 7... Nf6 {[%clk 0:03:03.9]} 8. Bd3 {[%clk
0:02:54.7]} 8... b6 {[%clk 0:03:02.6]} 9. Ne5 {[%clk 0:02:50.5]} 9... Bb7 {[%clk
0:03:02.2]} 10. Bb5+ {[%clk 0:02:50.5]} 10... c6 {[%clk 0:03:02.2]} 11. Nxc6
{[%clk 0:02:47.4]} 11... Qd5 {[%clk 0:03:02.7]} 12. c4 {[%clk 0:02:32.5]} 12...
Qxg2 {[%clk 0:03:01.4]} 13. Ne5+ {[%clk 0:02:30.3]} 13... Kd8 {[%clk 0:03:02.1]}
14. Rf1 {[%clk 0:02:23.2]} 14... Bb4+ {[%clk 0:03:01.9]} 15. Bd2 {[%clk
0:02:22.8]} 15... Qe4+ {[%clk 0:03:02.5]} 16. Qe2 {[%clk 0:02:19]} 16... Bxd2+
{[%clk 0:03:03.1]} 17. Kxd2 {[%clk 0:02:14.8]} 17... Ke7 {[%clk 0:03:03.8]} 18.
Qxe4 {[%clk 0:02:11.8]} 18... Nxe4+ {[%clk 0:03:04.7]} 19. Ke3 {[%clk
0:02:11.5]} 19... Nd6 {[%clk 0:03:05.1]} 20. Nc6+ {[%clk 0:02:04.6]} 20... Kf6
{[%clk 0:02:15.4]} 21. Rac1 {[%clk 0:01:57]} 21... a6 {[%clk 0:02:09.9]} 22. Ba4
{[%clk 0:01:56.7]} 22... Rac8 {[%clk 0:01:57.9]} 23. Ne5 {[%clk 0:01:53.4]}
23... Rhd8 {[%clk 0:01:51.3]} 24. Nd7+ {[%clk 0:01:50.9]} 24... Ke7 {[%clk
0:01:30.4]} 25. Nxb6 {[%clk 0:01:50.4]} 25... Nf5+ {[%clk 0:01:31]} 26. Ke2
{[%clk 0:01:36.4]} 26... Nxd4+ {[%clk 0:01:29.5]} 27. Ke1 {[%clk 0:01:34.1]}
27... Nf3+ {[%clk 0:01:21.5]} 28. Ke2 {[%clk 0:01:33.9]} 28... Rc5 {[%clk
0:01:06.9]} 29. Rfd1 {[%clk 0:01:30.8]} 29... Re5+ {[%clk 0:00:50.7]} 30. Kf1
{[%clk 0:01:30.7]} 30... Nxh2+ {[%clk 0:00:46.8]} 31. Kg1 {[%clk 0:01:30.6]}
31... Nf3+ {[%clk 0:00:45.9]} 32. Kf1 {[%clk 0:01:30.3]} 32... Nd2+ {[%clk
0:00:33]} 33. Kg1 {[%clk 0:01:16.6]} 33... Rg5+ {[%clk 0:00:32.6]} 34. Kh2
{[%clk 0:01:16.8]} 34... Rg2+ {[%clk 0:00:29.1]} 35. Kh3 {[%clk 0:01:16.8]}
35... Rd3+ {[%clk 0:00:26.2]} 36. Kh4 {[%clk 0:01:15.9]} 36... g5+ {[%clk
0:00:18.5]} 0-1

[Event "Early-Titled-Tuesday-Blitz-January-23-2024"]
[Site "Chess.com"]
[Date "2024.01.23"]
[Round "2"]
[White "rezamahdavi2008"]
[Black "jeetjain"]
[Result "1-0"]
[WhiteElo "2840"]
[BlackElo "2559"]
[TimeControl "180+1"]
[EndTime "8:16:21 PST"]
[Termination "rezamahdavi2008 won by resignation"]

1. e4 {[%clk 0:03:00.9]} 1... c6 {[%clk 0:02:58.7]} 2. d4 {[%clk 0:02:58.7]}
2... d5 {[%clk 0:02:58.8]} 3. e5 {[%clk 0:02:55.1]} 3... c5 {[%clk 0:02:57.9]}
4. dxc5 {[%clk 0:02:52.9]} 4... Nc6 {[%clk 0:02:56]} 5. f4 {[%clk 0:02:52.5]}
5... e6 {[%clk 0:02:50.5]} 6. Be3 {[%clk 0:02:52.6]} 6... d4 {[%clk 0:02:48.7]}
7. Bf2 {[%clk 0:02:52.7]} 7... Bxc5 {[%clk 0:02:48.7]} 8. Nd2 {[%clk 0:02:52.1]}
8... a6 {[%clk 0:02:46.4]} 9. Qf3 {[%clk 0:02:51.8]} 9... Nge7 {[%clk
0:02:45.5]} 10. a3 {[%clk 0:02:49.2]} 10... O-O {[%clk 0:02:39.7]} 11. Bd3
{[%clk 0:02:48.1]} 11... b5 {[%clk 0:02:36.1]} 12. O-O-O {[%clk 0:02:39.8]}
12... Bb7 {[%clk 0:02:32.6]} 13. Bxh7+ {[%clk 0:02:36.9]} 13... Kxh7 {[%clk
0:02:29.6]} 14. Ne4 {[%clk 0:02:37.5]} 14... Kg8 {[%clk 0:01:23.6]} 15. Nxc5
{[%clk 0:02:32.4]} 15... Qb6 {[%clk 0:01:23.4]} 16. Nd7 {[%clk 0:02:20.9]} 16...
Qc7 {[%clk 0:01:20.5]} 17. Nxf8 {[%clk 0:02:21.1]} 17... Rxf8 {[%clk 0:01:14.9]}
18. Qd3 {[%clk 0:02:03.6]} 18... Na5 {[%clk 0:01:14.5]} 19. Nf3 {[%clk
0:02:01.2]} 19... Nd5 {[%clk 0:01:14.7]} 20. Ng5 {[%clk 0:01:57.9]} 20... g6
{[%clk 0:01:08.2]} 21. Qh3 {[%clk 0:01:55.7]} 21... Rc8 {[%clk 0:01:08]} 22. Rd2
{[%clk 0:01:53.1]} 22... Nc4 {[%clk 0:01:01.3]} 23. Rhd1 {[%clk 0:01:32.3]}
23... Nxd2 {[%clk 0:00:55.2]} 24. Rxd2 {[%clk 0:01:33.2]} 24... b4 {[%clk
0:00:49.3]} 25. axb4 {[%clk 0:01:30.3]} 25... Kf8 {[%clk 0:00:48.8]} 26. Bxd4
{[%clk 0:01:26.5]} 26... Ke8 {[%clk 0:00:38.9]} 27. Bc5 {[%clk 0:01:21.3]} 27...
a5 {[%clk 0:00:38.4]} 28. Ne4 {[%clk 0:01:02.8]} 28... axb4 {[%clk 0:00:31.6]}
29. Nf6+ {[%clk 0:01:01.4]} 29... Nxf6 {[%clk 0:00:22.9]} 30. Qh8+ {[%clk
0:01:02.3]} 1-0

[Event "Early-Titled-Tuesday-Blitz-January-23-2024"]
[Site "Chess.com"]
[Date "2024.01.23"]
[Round "2"]
[White "dozer80"]
[Black "Maftuna2303"]
[Result "0-1"]
[WhiteElo "2712"]
[BlackElo "2416"]
[TimeControl "180+1"]
[EndTime "8:16:24 PST"]
[Termination "Maftuna2303 won by resignation"]

1. d4 {[%clk 0:03:00.9]} 1... d5 {[%clk 0:02:58.4]} 2. c4 {[%clk 0:03:00.9]}
2... dxc4 {[%clk 0:02:56.4]} 3. e3 {[%clk 0:02:59.3]} 3... Nf6 {[%clk
0:02:55.2]} 4. Nf3 {[%clk 0:02:58.3]} 4... e6 {[%clk 0:02:55]} 5. Bxc4 {[%clk
0:02:57.9]} 5... a6 {[%clk 0:02:55.4]} 6. O-O {[%clk 0:02:55.2]} 6... c5 {[%clk
0:02:52.1]} 7. Qe2 {[%clk 0:02:49.1]} 7... b5 {[%clk 0:02:49.5]} 8. Bd3 {[%clk
0:02:48.7]} 8... cxd4 {[%clk 0:02:45]} 9. a4 {[%clk 0:02:48.7]} 9... b4 {[%clk
0:02:43.5]} 10. Rd1 {[%clk 0:02:33.7]} 10... Nbd7 {[%clk 0:02:39.9]} 11. Nxd4
{[%clk 0:01:56.8]} 11... Bb7 {[%clk 0:02:37.2]} 12. a5 {[%clk 0:01:52.3]} 12...
Be7 {[%clk 0:02:34.9]} 13. e4 {[%clk 0:01:50.1]} 13... Qc7 {[%clk 0:02:27.2]}
14. Bg5 {[%clk 0:01:43.5]} 14... O-O {[%clk 0:02:17.2]} 15. Nd2 {[%clk
0:01:42.5]} 15... Nc5 {[%clk 0:01:59.9]} 16. e5 {[%clk 0:01:35.9]} 16... Nd5
{[%clk 0:01:59.1]} 17. Bxe7 {[%clk 0:01:32.5]} 17... Qxe7 {[%clk 0:01:57.4]} 18.
g3 {[%clk 0:00:34.7]} 18... Nxd3 {[%clk 0:01:51.5]} 19. Qxd3 {[%clk 0:00:35.6]}
19... Rad8 {[%clk 0:01:45]} 20. Ne4 {[%clk 0:00:34.3]} 20... Ba8 {[%clk
0:01:35.1]} 21. h4 {[%clk 0:00:26.4]} 21... Qb7 {[%clk 0:01:31.3]} 22. Re1
{[%clk 0:00:21]} 22... Ne7 {[%clk 0:01:27.2]} 23. Qe3 {[%clk 0:00:10.8]} 23...
Nf5 {[%clk 0:01:21.1]} 24. Nxf5 {[%clk 0:00:09.3]} 24... exf5 {[%clk 0:01:21.3]}
25. e6 {[%clk 0:00:03.5]} 25... fxe4 {[%clk 0:01:15.5]} 26. e7 {[%clk
0:00:03.1]} 26... Qxe7 {[%clk 0:01:14.8]} 0-1

[Event "Early-Titled-Tuesday-Blitz-January-23-2024"]
[Site "Chess.com"]
[Date "2024.01.23"]
[Round "2"]
[White "viniciusrego"]
[Black "olawsson"]
[Result "1-0"]
[WhiteElo "2456"]
[BlackElo "2149"]
[TimeControl "180+1"]
[EndTime "8:16:28 PST"]
[Termination "viniciusrego won on time"]

1. d4 {[%clk 0:03:00.9]} 1... d6 {[%clk 0:03:00.1]} 2. c4 {[%clk 0:03:00.5]}
2... g6 {[%clk 0:02:59.8]} 3. Nc3 {[%clk 0:02:59.8]} 3... Bg7 {[%clk 0:03:00.4]}
4. e4 {[%clk 0:02:59.5]} 4... Nc6 {[%clk 0:03:00]} 5. Nf3 {[%clk 0:02:54.1]}
5... Bg4 {[%clk 0:02:59.3]} 6. Be3 {[%clk 0:02:54]} 6... e5 {[%clk 0:02:58.7]}
7. d5 {[%clk 0:02:52.2]} 7... Nd4 {[%clk 0:02:57.6]} 8. Be2 {[%clk 0:02:51.4]}
8... Nxe2 {[%clk 0:02:56.9]} 9. Qxe2 {[%clk 0:02:51.2]} 9... Nf6 {[%clk
0:02:57.2]} 10. h3 {[%clk 0:02:50.9]} 10... Bd7 {[%clk 0:02:56.8]} 11. O-O
{[%clk 0:02:48.2]} 11... Nh5 {[%clk 0:02:56.5]} 12. Nd2 {[%clk 0:02:47.9]} 12...
Nf4 {[%clk 0:02:53.7]} 13. Qf3 {[%clk 0:02:40.5]} 13... Qf6 {[%clk 0:02:52.6]}
14. c5 {[%clk 0:02:31.6]} 14... O-O {[%clk 0:02:47]} 15. cxd6 {[%clk 0:02:30.8]}
15... cxd6 {[%clk 0:02:45.7]} 16. Kh2 {[%clk 0:02:28.3]} 16... b5 {[%clk
0:02:29.2]} 17. Ne2 {[%clk 0:02:24.7]} 17... g5 {[%clk 0:02:28.8]} 18. Ng3
{[%clk 0:02:21.1]} 18... g4 {[%clk 0:02:07.4]} 19. Qd1 {[%clk 0:01:33]} 19...
gxh3 {[%clk 0:01:17.8]} 20. Nh5 {[%clk 0:01:29.9]} 20... Qh4 {[%clk 0:00:50.8]}
21. g3 {[%clk 0:01:04.9]} 21... Qxh5 {[%clk 0:00:34.4]} 22. gxf4 {[%clk
0:01:04.8]} 22... Qh4 {[%clk 0:00:11.4]} 23. Rg1 {[%clk 0:01:00.4]} 23... Kh8
{[%clk 0:00:11.3]} 24. f5 {[%clk 0:00:52.9]} 24... Bf6 {[%clk 0:00:10.9]} 25.
Rg4 {[%clk 0:00:52.6]} 1-0

[Event "Early-Titled-Tuesday-Blitz-January-23-2024"]
[Site "Chess.com"]
[Date "2024.01.23"]
[Round "2"]
[White "sonicdravise"]
[Black "NewYearGirl"]
[Result "1-0"]
[WhiteElo "2651"]
[BlackElo "2363"]
[TimeControl "180+1"]
[EndTime "8:16:30 PST"]
[Termination "sonicdravise won by resignation"]

1. d4 {[%clk 0:03:00.9]} 1... Nf6 {[%clk 0:02:59.9]} 2. c4 {[%clk 0:03:00.4]}
2... c5 {[%clk 0:03:00.5]} 3. d5 {[%clk 0:03:00.4]} 3... b5 {[%clk 0:03:00.6]}
4. cxb5 {[%clk 0:03:00.8]} 4... a6 {[%clk 0:03:00.9]} 5. bxa6 {[%clk 0:03:00.2]}
5... e6 {[%clk 0:03:00.1]} 6. Nc3 {[%clk 0:02:51.5]} 6... exd5 {[%clk
0:02:59.5]} 7. Nxd5 {[%clk 0:02:50.5]} 7... Be7 {[%clk 0:02:59.5]} 8. e4 {[%clk
0:02:44.8]} 8... O-O {[%clk 0:02:58]} 9. Bc4 {[%clk 0:02:40.9]} 9... Nxe4 {[%clk
0:02:51.4]} 10. Nf3 {[%clk 0:02:33.7]} 10... Bxa6 {[%clk 0:02:44.3]} 11. Bxa6
{[%clk 0:02:29.7]} 11... Nxa6 {[%clk 0:02:39.6]} 12. O-O {[%clk 0:02:30.1]}
12... Bd6 {[%clk 0:02:25.4]} 13. Nc3 {[%clk 0:02:06.9]} 13... Nxc3 {[%clk
0:02:21]} 14. Qxd6 {[%clk 0:02:07.2]} 14... Ne2+ {[%clk 0:02:20.4]} 15. Kh1
{[%clk 0:02:07.6]} 15... Nxc1 {[%clk 0:02:17.1]} 16. Raxc1 {[%clk 0:02:07.6]}
16... Qa5 {[%clk 0:02:09.9]} 17. a3 {[%clk 0:02:02.6]} 17... Rab8 {[%clk
0:02:07.2]} 18. Rc2 {[%clk 0:01:59.1]} 18... Qa4 {[%clk 0:02:03.3]} 19. Rd2
{[%clk 0:01:53.3]} 19... h6 {[%clk 0:01:57.1]} 20. Ne5 {[%clk 0:01:48.3]} 20...
Qb5 {[%clk 0:01:42.6]} 21. Rfd1 {[%clk 0:01:47.6]} 21... Rb6 {[%clk 0:01:36.2]}
22. Qxd7 {[%clk 0:01:43.6]} 22... Qb3 {[%clk 0:01:22.5]} 23. Rd3 {[%clk
0:01:38.7]} 23... Qc2 {[%clk 0:01:19.6]} 24. R3d2 {[%clk 0:01:21.9]} 24... Qe4
{[%clk 0:01:19.4]} 25. Nxf7 {[%clk 0:00:45.8]} 25... Rg6 {[%clk 0:01:14.7]} 26.
f3 {[%clk 0:00:38.3]} 26... Qe3 {[%clk 0:01:10.5]} 27. Nd6 {[%clk 0:00:29.4]}
27... Rxf3 {[%clk 0:01:08.8]} 28. Qc8+ {[%clk 0:00:25.6]} 28... Kh7 {[%clk
0:01:08]} 29. Qxa6 {[%clk 0:00:25.2]} 29... Rf1+ {[%clk 0:00:50.7]} 30. Qxf1
{[%clk 0:00:25]} 30... Qxd2 {[%clk 0:00:51.4]} 31. Rxd2 {[%clk 0:00:24.7]} 1-0

[Event "Early-Titled-Tuesday-Blitz-January-23-2024"]
[Site "Chess.com"]
[Date "2024.01.23"]
[Round "2"]
[White "Alexchess1984"]
[Black "LyonBeast"]
[Result "0-1"]
[WhiteElo "2653"]
[BlackElo "3159"]
[TimeControl "180+1"]
[EndTime "8:16:34 PST"]
[Termination "LyonBeast won by resignation"]

1. e4 {[%clk 0:03:00.9]} 1... c5 {[%clk 0:02:58.8]} 2. Nf3 {[%clk 0:02:58.2]}
2... Nc6 {[%clk 0:02:57.9]} 3. Bb5 {[%clk 0:02:56.7]} 3... e6 {[%clk 0:02:56.7]}
4. Bxc6 {[%clk 0:02:54.4]} 4... bxc6 {[%clk 0:02:57.6]} 5. d3 {[%clk 0:02:54.7]}
5... Ne7 {[%clk 0:02:57.3]} 6. Qe2 {[%clk 0:02:55.2]} 6... d6 {[%clk 0:02:54.1]}
7. e5 {[%clk 0:02:53.6]} 7... Nf5 {[%clk 0:02:53.5]} 8. exd6 {[%clk 0:02:49.4]}
8... Bxd6 {[%clk 0:02:54.4]} 9. O-O {[%clk 0:02:48.1]} 9... O-O {[%clk
0:02:54.2]} 10. Nc3 {[%clk 0:02:44.4]} 10... Nd4 {[%clk 0:02:50.1]} 11. Nxd4
{[%clk 0:02:41.1]} 11... cxd4 {[%clk 0:02:51]} 12. Ne4 {[%clk 0:02:41.9]} 12...
Be7 {[%clk 0:02:51.2]} 13. f4 {[%clk 0:02:29.2]} 13... c5 {[%clk 0:02:50.4]} 14.
b3 {[%clk 0:02:27.8]} 14... Qd5 {[%clk 0:02:39.2]} 15. a4 {[%clk 0:02:22.6]}
15... Bb7 {[%clk 0:02:38.2]} 16. Ba3 {[%clk 0:02:22.6]} 16... Rac8 {[%clk
0:02:31.3]} 17. Rae1 {[%clk 0:02:19.6]} 17... Rfe8 {[%clk 0:02:28.2]} 18. Qf3
{[%clk 0:02:09.8]} 18... g6 {[%clk 0:02:17.8]} 19. Nd2 {[%clk 0:02:02.8]} 19...
Qd7 {[%clk 0:02:15.3]} 20. Qe2 {[%clk 0:02:01.8]} 20... Bh4 {[%clk 0:02:12.6]}
21. Ra1 {[%clk 0:01:59.4]} 21... Bd5 {[%clk 0:02:07.7]} 22. Nf3 {[%clk
0:01:53.1]} 22... Be7 {[%clk 0:02:05.1]} 23. Ne5 {[%clk 0:01:53.4]} 23... Qb7
{[%clk 0:02:05.2]} 24. Rf2 {[%clk 0:01:47.9]} 24... Bd6 {[%clk 0:02:01.4]} 25.
Ng4 {[%clk 0:01:35.2]} 25... Kg7 {[%clk 0:02:01.4]} 26. Ne5 {[%clk 0:01:30.7]}
26... f6 {[%clk 0:02:01]} 27. Nc4 {[%clk 0:01:26.6]} 27... Bb8 {[%clk
0:02:01.7]} 28. Raf1 {[%clk 0:01:15.4]} 28... h5 {[%clk 0:02:01]} 29. Bc1 {[%clk
0:01:13.4]} 29... Rh8 {[%clk 0:01:55.6]} 30. Bd2 {[%clk 0:01:08.1]} 30... Rce8
{[%clk 0:01:53.8]} 31. Qd1 {[%clk 0:01:02.2]} 31... Qc6 {[%clk 0:01:51]} 32. Bc1
{[%clk 0:01:00.4]} 32... Bc7 {[%clk 0:01:49.8]} 33. Nd2 {[%clk 0:00:57]} 33...
h4 {[%clk 0:01:40.5]} 34. h3 {[%clk 0:00:51.3]} 34... e5 {[%clk 0:01:40.8]} 35.
fxe5 {[%clk 0:00:44.2]} 35... Bxe5 {[%clk 0:01:40.5]} 36. Re2 {[%clk 0:00:23.6]}
36... Bg3 {[%clk 0:01:36.1]} 37. Nf3 {[%clk 0:00:23.3]} 37... Rxe2 {[%clk
0:01:34.9]} 38. Qxe2 {[%clk 0:00:24.2]} 38... Re8 {[%clk 0:01:35.1]} 39. Qd2
{[%clk 0:00:20.6]} 39... Re3 {[%clk 0:01:30.3]} 40. Qd1 {[%clk 0:00:20.5]} 40...
Bxf3 {[%clk 0:01:29.2]} 41. gxf3 {[%clk 0:00:21]} 41... Qe6 {[%clk 0:01:19.9]}
42. Bxe3 {[%clk 0:00:20.3]} 42... dxe3 {[%clk 0:01:20.7]} 43. Qe2 {[%clk
0:00:19.8]} 43... Qxh3 {[%clk 0:01:20.7]} 44. Qg2 {[%clk 0:00:19.7]} 44... Qxg2+
{[%clk 0:01:20.8]} 45. Kxg2 {[%clk 0:00:19.7]} 45... e2 {[%clk 0:01:21.7]} 0-1

[Event "Early-Titled-Tuesday-Blitz-January-23-2024"]
[Site "Chess.com"]
[Date "2024.01.23"]
[Round "2"]
[White "DuleMudule"]
[Black "InitiatingASC"]
[Result "1-0"]
[WhiteElo "2863"]
[BlackElo "2423"]
[TimeControl "180+1"]
[EndTime "8:16:36 PST"]
[Termination "DuleMudule won by resignation"]

1. d4 {[%clk 0:03:00.9]} 1... Nf6 {[%clk 0:02:58]} 2. Bg5 {[%clk 0:03:01.4]}
2... e6 {[%clk 0:02:57.4]} 3. e3 {[%clk 0:03:00.8]} 3... c6 {[%clk 0:02:55.5]}
4. Nd2 {[%clk 0:03:01]} 4... d5 {[%clk 0:02:54.3]} 5. Bd3 {[%clk 0:03:00.3]}
5... Nbd7 {[%clk 0:02:54.2]} 6. f4 {[%clk 0:03:00.9]} 6... Be7 {[%clk
0:02:51.9]} 7. Ngf3 {[%clk 0:02:59]} 7... h6 {[%clk 0:02:44.8]} 8. Bxf6 {[%clk
0:02:58.9]} 8... Nxf6 {[%clk 0:02:43.7]} 9. Qe2 {[%clk 0:02:59.3]} 9... Qb6
{[%clk 0:02:41.6]} 10. Rc1 {[%clk 0:02:57.4]} 10... Qxb2 {[%clk 0:02:37.2]} 11.
O-O {[%clk 0:02:54.8]} 11... Qa3 {[%clk 0:02:30.7]} 12. Ne5 {[%clk 0:02:54.3]}
12... O-O {[%clk 0:02:27.3]} 13. g4 {[%clk 0:02:44.6]} 13... Nd7 {[%clk
0:02:21.8]} 14. Ndf3 {[%clk 0:02:42.5]} 14... c5 {[%clk 0:02:17.8]} 15. c3
{[%clk 0:02:41.3]} 15... b6 {[%clk 0:01:55.8]} 16. g5 {[%clk 0:02:40.6]} 16...
hxg5 {[%clk 0:01:44.1]} 17. Nxd7 {[%clk 0:02:30.6]} 17... Bxd7 {[%clk
0:01:40.1]} 18. Nxg5 {[%clk 0:02:28.8]} 18... f5 {[%clk 0:01:23.4]} 19. Qh5
{[%clk 0:02:25.4]} 19... Bxg5 {[%clk 0:01:22.9]} 20. fxg5 {[%clk 0:02:26.3]}
20... Be8 {[%clk 0:00:55.5]} 21. g6 {[%clk 0:02:23.1]} 21... Bxg6 {[%clk
0:00:55.6]} 22. Qxg6 {[%clk 0:02:22.5]} 22... Rf6 {[%clk 0:00:51.3]} 23. Qg5
{[%clk 0:02:20.2]} 23... Qxa2 {[%clk 0:00:50.6]} 24. Rc2 {[%clk 0:02:19.7]}
24... Qa3 {[%clk 0:00:47.3]} 25. Rg2 {[%clk 0:02:19.9]} 25... Rf7 {[%clk
0:00:46.9]} 26. Be2 {[%clk 0:02:07.8]} 26... Qxc3 {[%clk 0:00:44.4]} 27. Bh5
{[%clk 0:02:08.2]} 27... Rd7 {[%clk 0:00:43.7]} 28. Bg6 {[%clk 0:02:06.1]} 28...
Rf8 {[%clk 0:00:39.2]} 29. h4 {[%clk 0:01:55.4]} 29... cxd4 {[%clk 0:00:37.3]}
30. Rf3 {[%clk 0:01:39.9]} 30... dxe3 {[%clk 0:00:35]} 31. Rxe3 {[%clk
0:01:40.8]} 31... Qf6 {[%clk 0:00:33.6]} 32. Qh5 {[%clk 0:01:40.3]} 32... Rc8
{[%clk 0:00:31.1]} 33. Kh2 {[%clk 0:01:32.8]} 33... Rc1 {[%clk 0:00:26.5]} 34.
Reg3 {[%clk 0:01:14.6]} 34... Kf8 {[%clk 0:00:26.2]} 35. Be8 {[%clk 0:01:10.1]}
35... Rdc7 {[%clk 0:00:24.3]} 36. Qh8+ {[%clk 0:01:09.6]} 36... Ke7 {[%clk
0:00:23.3]} 37. Rxg7+ {[%clk 0:01:10.1]} 37... Kd6 {[%clk 0:00:21.2]} 38. Rd7+
{[%clk 0:01:10.1]} 38... Ke5 {[%clk 0:00:21.2]} 39. Re2+ {[%clk 0:01:10]} 1-0